bitfinex/quotes_BTCUSD_20250515
["timestamp","ask_amount","ask_price","bid_price","bid_amount"]
[1747327322517,0.6176042,103420.0,103410.0,0.21949122]
[1747327322518,0.6782042,103420.0,103410.0,0.21949122]
[1747327322728,0.66853527,103420.0,103410.0,0.22916127]
[1747327322935,0.65886615,103420.0,103410.0,0.00674594]
[1747327323131,0.85286615,103420.0,103410.0,0.00674594]
[1747327323558,0.00967005,103410.0,103400.0,0.23210587]
[1747327323773,0.20250996,103410.0,103400.0,0.23210587]
[1747327323978,0.5873417,103410.0,103400.0,0.24177657]
[1747327324153,0.60668181,103410.0,103400.0,0.24177657]
[1747327324356,0.05143833,103420.0,103410.0,0.21274471]
[1747327324526,0.79275561,103420.0,103410.0,0.22241439]
[1747327324762,0.60922491,103420.0,103410.0,0.21274471]
[1747327324992,0.80042491,103420.0,103410.0,0.21274471]
[1747327325836,0.80042491,103420.0,103410.0,0.21950389]
[1747327326041,0.80878957,103420.0,103410.0,0.21950389]
[1747327326244,0.23057118,103420.0,103410.0,0.22917348]
[1747327326537,0.80111962,103420.0,103410.0,0.21950389]
[1747327326989,0.42603737,103420.0,103410.0,0.21950389]
[1747327327150,0.60791962,103420.0,103410.0,0.21950389]
[1747327327323,0.80115962,103420.0,103410.0,0.21950408]
[1747327327520,0.01036466,103420.0,103410.0,0.40055294]
[1747327327724,0.21323331,103420.0,103410.0,0.40055294]
[1747327327954,0.02003322,103420.0,103410.0,0.40055294]
[1747327328153,0.21323322,103420.0,103410.0,0.40055294]
[1747327328318,0.01036466,103420.0,103410.0,0.40055294]
[1747327328834,0.00836466,103420.0,103410.0,0.40055294]
[1747327329050,0.00936466,103420.0,103410.0,0.40055294]
[1747327329250,0.001,103420.0,103410.0,0.75509379]
[1747327329434,0.001,103420.0,103410.0,0.94909379]
[1747327330260,0.000481,103430.0,103420.0,0.28409298]
[1747327330439,0.000481,103430.0,103420.0,0.38140238]
[1747327330639,0.000481,103430.0,103420.0,0.38816156]
[1747327331658,0.000481,103430.0,103420.0,0.82064853]
[1747327332084,0.000481,103430.0,103420.0,0.74270241]
[1747327332306,0.000481,103430.0,103420.0,0.75718893]
[1747327332904,0.001481,103430.0,103420.0,0.75718893]
[1747327333726,0.001481,103430.0,103420.0,0.95114893]
[1747327333930,0.001481,103430.0,103420.0,0.75718893]
[1747327337743,0.0156277,103460.0,103450.0,0.64056935]
[1747327337964,0.00964292,103470.0,103460.0,0.57684784]
[1747327338265,0.00066323,103470.0,103460.0,0.73495724]
[1747327338672,0.00066323,103470.0,103460.0,0.74171642]
[1747327339476,0.00166323,103470.0,103460.0,0.74171642]
[1747327341564,0.00066323,103470.0,103460.0,0.74171642]
[1747327341766,0.00066323,103470.0,103460.0,0.74471642]
[1747327342042,0.00066323,103470.0,103460.0,0.74771642]
[1747327342195,0.01005102,103480.0,103470.0,0.28648552]
[1747327342397,0.01005102,103480.0,103470.0,0.57651492]
[1747327342620,0.01005102,103480.0,103470.0,0.5832741]
[1747327342845,0.01005102,103480.0,103470.0,2.6980721]
[1747327343057,0.01005102,103480.0,103470.0,2.3361621]
[1747327343199,0.01044538,103490.0,103480.0,0.30100487]
[1747327343598,0.01044538,103490.0,103480.0,0.39831427]
[1747327343768,0.010499,103490.0,103480.0,0.39831427]
[1747327343926,0.010499,103490.0,103480.0,0.40507345]
[1747327344131,0.010499,103490.0,103480.0,0.74507345]
[1747327344335,0.010499,103490.0,103480.0,1.05368845]
[1747327344609,0.010499,103490.0,103480.0,0.74507345]
[1747327344815,0.01044538,103490.0,103480.0,0.86991883]
[1747327345937,0.01044538,103490.0,103480.0,0.88462742]
[1747327346714,0.01044538,103490.0,103480.0,0.75972842]
[1747327347098,0.01044538,103490.0,103480.0,1.14524842]
[1747327347299,0.01044538,103490.0,103480.0,0.95244842]
[1747327347503,0.01044538,103490.0,103480.0,0.75972842]
[1747327347705,0.01044538,103490.0,103480.0,0.95244842]
[1747327347905,0.01044538,103490.0,103480.0,0.56700757]
[1747327348106,0.01044538,103490.0,103480.0,0.34098757]
[1747327348360,0.01044538,103490.0,103480.0,0.67422839]
[1747327348681,0.01044538,103490.0,103480.0,0.6595198]
[1747327352373,0.01044538,103490.0,103480.0,0.7228198]
[1747327352994,0.01044538,103490.0,103480.0,0.73736065]
[1747327353665,0.01044538,103490.0,103480.0,0.75858734]
[1747327354013,0.01044538,103490.0,103480.0,0.95126734]
[1747327355087,0.01044538,103490.0,103480.0,0.94964734]
[1747327356027,0.00544538,103490.0,103480.0,0.94964734]
[1747327356924,0.0055061,103490.0,103480.0,0.94964734]
[1747327358093,0.00544538,103490.0,103480.0,0.93503425]
[1747327358520,0.00544538,103490.0,103480.0,0.8571934]
[1747327358745,0.39026955,103490.0,103480.0,0.3245134]
[1747327358947,0.38060763,103490.0,103480.0,0.3245134]
[1747327359150,0.00544538,103490.0,103480.0,0.3245134]
[1747327361038,0.43273195,103490.0,103480.0,0.3245134]
[1747327361431,0.45566965,103490.0,103480.0,0.3245134]
[1747327361635,0.46533176,103490.0,103480.0,0.3245134]
[1747327362069,0.47499396,103490.0,103480.0,0.3245134]
[1747327362268,0.48465635,103490.0,103480.0,0.3245134]
[1747327362472,0.49431893,103490.0,103480.0,0.3245134]
[1747327362724,0.49431893,103490.0,103480.0,0.20961198]
[1747327362725,0.65858798,103490.0,103480.0,0.20961198]
[1747327363132,0.65858798,103490.0,103480.0,0.21927549]
[1747327363337,0.65858798,103490.0,103480.0,0.22226459]
[1747327363551,0.66758697,103490.0,103480.0,0.23192791]
[1747327363967,0.67724964,103490.0,103480.0,0.24159105]
[1747327364174,0.07984437,103490.0,103480.0,0.33889989]
[1747327364353,0.29148849,103490.0,103480.0,5.40946889]
[1747327364554,0.30115088,103490.0,103480.0,5.40946889]
[1747327364763,0.29248849,103490.0,103480.0,5.40946889]
[1747327364925,0.01544437,103490.0,103480.0,5.81296889]
[1747327365132,0.01544437,103490.0,103480.0,5.81968442]
[1747327365755,0.00644538,103490.0,103480.0,5.81968442]
[1747327366108,0.00544538,103490.0,103480.0,5.81968442]
[1747327367745,0.0055,103490.0,103480.0,5.81968442]
[1747327368958,0.00544538,103490.0,103480.0,5.8196298]
[1747327370694,0.00544538,103490.0,103480.0,5.83417065]
[1747327372335,0.00544538,103490.0,103480.0,5.84417065]
[1747327373149,0.00544538,103490.0,103480.0,5.98437303]
[1747327373349,0.00544538,103490.0,103480.0,6.0107763]
[1747327373919,0.00544538,103490.0,103480.0,6.3952563]
[1747327374943,0.00544538,103490.0,103480.0,6.3852563]
[1747327378190,0.00544538,103490.0,103480.0,6.3752563]
[1747327378436,0.00544538,103490.0,103480.0,6.3750163]
[1747327379162,0.00544538,103490.0,103480.0,6.3850163]
[1747327379359,0.00544538,103490.0,103480.0,6.48388855]
[1747327380013,0.02323839,103500.0,103490.0,0.6496834]
[1747327380220,0.02337776,103500.0,103490.0,3.36344407]
[1747327380435,0.00013937,103500.0,103490.0,3.82551019]
[1747327381069,0.00013937,103500.0,103490.0,3.82651019]
[1747327381270,0.00013937,103500.0,103490.0,3.84422572]
[1747327381660,0.00013937,103500.0,103490.0,3.84522572]
[1747327381875,0.00013937,103500.0,103490.0,3.3731596]
[1747327382068,0.00013937,103500.0,103490.0,0.76591748]
[1747327382435,0.00013937,103500.0,103490.0,1.11591748]
[1747327382639,0.00013937,103500.0,103490.0,1.15679581]
[1747327382837,0.00013937,103500.0,103490.0,0.96443581]
[1747327383060,0.00013937,103500.0,103490.0,1.34831581]
[1747327383934,0.00247505,103510.0,103500.0,0.58676194]
[1747327384135,0.00247505,103510.0,103500.0,3.90200134]
[1747327384315,0.00252772,103510.0,103500.0,3.90200134]
[1747327384912,0.00252772,103510.0,103500.0,3.90871687]
[1747327385572,0.00247505,103510.0,103500.0,3.9086642]
[1747327386841,0.00247505,103510.0,103500.0,3.8862492]
[1747327387833,0.00247505,103510.0,103500.0,1.9337192]
[1747327388193,0.06383505,103530.0,103520.0,0.56217815]
[1747327388405,0.06383505,103530.0,103520.0,0.85184755]
[1747327389235,0.06383505,103530.0,103520.0,0.85856308]
[1747327389826,0.06483505,103530.0,103520.0,0.85856308]
[1747327389962,0.06483505,103530.0,103520.0,0.66620308]
[1747327390166,0.06483505,103530.0,103520.0,0.85852308]
[1747327391480,0.06483505,103530.0,103520.0,0.66620308]
[1747327395078,0.06483505,103530.0,103520.0,0.67565518]
[1747327402247,0.06196753,103530.0,103520.0,0.67565518]
[1747327407816,0.03066753,103530.0,103520.0,0.67565518]
[1747327408018,0.001,103530.0,103520.0,0.67565518]
[1747327408822,0.001,103530.0,103520.0,0.67567665]
[1747327409210,0.001,103530.0,103520.0,0.67424351]
[1747327410222,0.001,103530.0,103520.0,0.74998436]
[1747327410606,0.001,103530.0,103520.0,0.77639781]
[1747327411735,0.00113919,103530.0,103520.0,0.77639781]
[1747327412099,0.00013919,103530.0,103520.0,0.77639781]
[1747327414814,0.00013919,103530.0,103520.0,0.96747781]
[1747327418469,0.00013919,103530.0,103520.0,0.96847781]
[1747327419038,0.00013919,103530.0,103520.0,0.96947781]
[1747327419372,0.00292,103550.0,103540.0,0.56213524]
[1747327419571,0.03370014,103550.0,103540.0,0.65944464]
[1747327419703,0.03370014,103550.0,103540.0,0.66618164]
[1747327421625,0.03470014,103550.0,103540.0,0.66618164]
[1747327421847,0.00440014,103550.0,103540.0,0.66618164]
[1747327423888,0.00440014,103550.0,103540.0,0.68091244]
[1747327424711,0.00440014,103550.0,103540.0,0.69545329]
[1747327425001,0.00440014,103550.0,103540.0,0.75565329]
[1747327425228,0.00440014,103550.0,103540.0,0.94673329]
[1747327425432,0.00440014,103550.0,103540.0,0.97315165]
[1747327426580,0.00340014,103550.0,103540.0,0.97315165]
[1747327427436,0.00340014,103550.0,103540.0,0.94673329]
[1747327428232,0.00340014,103550.0,103540.0,0.97313781]
[1747327428456,0.00340014,103550.0,103540.0,0.94673329]
[1747327428709,0.00340014,103550.0,103540.0,0.75565329]
[1747327428902,0.00340014,103550.0,103540.0,1.13821329]
[1747327431492,0.00340014,103550.0,103540.0,0.75565329]
[1747327431614,0.0206277,103560.0,103550.0,0.30005462]
[1747327431826,0.0206277,103560.0,103550.0,0.40410102]
[1747327433056,0.0216277,103560.0,103550.0,0.40410102]
[1747327435794,0.0216277,103560.0,103550.0,0.34070102]
[1747327436096,0.0216277,103560.0,103550.0,0.37390102]
[1747327436533,0.0216277,103560.0,103550.0,0.40400102]
[1747327437535,0.0206277,103560.0,103550.0,0.40400102]
[1747327438851,0.0206277,103560.0,103550.0,0.82170102]
[1747327439058,0.0206277,103560.0,103550.0,2.11252202]
[1747327439279,0.0206277,103560.0,103550.0,2.07013902]
[1747327439498,0.0206277,103560.0,103550.0,2.03010202]
[1747327440492,0.0206277,103560.0,103550.0,1.01359102]
[1747327440685,0.0206277,103560.0,103550.0,0.95900602]
[1747327441141,0.01183835,103570.0,103560.0,0.63803318]
[1747327441351,0.01198231,103570.0,103560.0,1.72413458]
[1747327441490,0.01198231,103570.0,103560.0,1.68742158]
[1747327441698,0.01198231,103570.0,103560.0,1.57882758]
[1747327441911,0.01198231,103570.0,103560.0,1.32396558]
[1747327442331,0.01198231,103570.0,103560.0,1.05257058]
[1747327442753,0.01198231,103570.0,103560.0,0.99117058]
[1747327442964,0.01298231,103570.0,103560.0,0.99117058]
[1747327444271,0.00675231,103570.0,103560.0,0.99117058]
[1747327445888,0.00675231,103570.0,103560.0,1.18597058]
[1747327447125,0.00675231,103570.0,103560.0,1.24797058]
[1747327448113,0.00675231,103570.0,103560.0,1.18597058]
[1747327449678,0.00675231,103570.0,103560.0,1.21827058]
[1747327450778,0.00675231,103570.0,103560.0,1.25157058]
[1747327452294,0.00675231,103570.0,103560.0,1.18597058]
[1747327452522,0.03735231,103570.0,103560.0,1.06555958]
[1747327452850,0.03735231,103570.0,103560.0,0.68067958]
[1747327453058,0.03735231,103570.0,103560.0,0.87159958]
[1747327453462,0.00675231,103570.0,103560.0,0.98479958]
[1747327453828,0.06925231,103570.0,103560.0,0.85705873]
[1747327454033,0.06925231,103570.0,103560.0,0.66613873]
[1747327456844,0.06925231,103570.0,103560.0,0.32613873]
[1747327457047,0.46372376,103570.0,103560.0,0.32613873]
[1747327457294,0.46372367,103570.0,103560.0,0.32613873]
[1747327457522,0.07890677,103570.0,103560.0,0.32613873]
[1747327457946,0.45406902,103570.0,103560.0,0.32613873]
[1747327458122,0.88107492,103570.0,103560.0,0.32613911]
[1747327458567,0.30415126,103570.0,103560.0,0.32613911]
[1747327458720,0.68896872,103570.0,103560.0,0.33579469]
[1747327460769,0.67931351,103570.0,103560.0,0.33579469]
[1747327461181,0.67931342,103570.0,103560.0,0.33579469]
[1747327461512,0.00775231,103570.0,103560.0,0.75374081]
[1747327463802,0.00775231,103570.0,103560.0,0.94910081]
[1747327464005,0.00775231,103570.0,103560.0,0.87115469]
[1747327464807,0.07315231,103570.0,103560.0,0.87115469]
[1747327464982,0.07315231,103570.0,103560.0,0.67579469]
[1747327467052,0.44831456,103570.0,103560.0,0.33579469]
[1747327467499,0.07315231,103570.0,103560.0,0.33579469]
[1747327468604,0.07315231,103570.0,103560.0,0.32905769]
[1747327468733,0.07315231,103570.0,103560.0,0.33578706]
[1747327469459,0.00775231,103570.0,103560.0,0.87114706]
[1747327469665,0.00775231,103570.0,103560.0,0.90254706]
[1747327470289,0.00775231,103570.0,103560.0,0.93544706]
[1747327472020,0.07125231,103570.0,103560.0,0.87114706]
[1747327472425,0.07125231,103570.0,103560.0,0.67578706]
[1747327472632,0.03865231,103570.0,103560.0,0.67578706]
[1747327472855,0.00775231,103570.0,103560.0,0.67578706]
[1747327473244,0.00775231,103570.0,103560.0,0.69032791]
[1747327473469,0.00775231,103570.0,103560.0,0.75222791]
[1747327474282,0.00675231,103570.0,103560.0,0.75222791]
[1747327474434,0.00675231,103570.0,103560.0,0.75322791]
[1747327474631,0.00675231,103570.0,103560.0,0.94778791]
[1747327474857,0.00675231,103570.0,103560.0,0.94678791]
[1747327475260,0.00675231,103570.0,103560.0,0.94778791]
[1747327486285,0.00675231,103570.0,103560.0,2.34113999]
[1747327486500,0.00675231,103570.0,103560.0,1.99960299]
[1747327486923,0.00675231,103570.0,103560.0,1.65101699]
[1747327487126,0.00675231,103570.0,103560.0,1.59118299]
[1747327487700,0.00675231,103570.0,103560.0,1.57782499]
[1747327487905,0.00675231,103570.0,103560.0,1.44174299]
[1747327489205,0.00675231,103570.0,103560.0,1.41437999]
[1747327489352,0.00675231,103570.0,103560.0,1.38107999]
[1747327489712,0.00519789,103570.0,103560.0,1.38107999]
[1747327496499,0.06443106,103590.0,103580.0,0.56204946]
[1747327496667,0.06443106,103590.0,103580.0,0.85135886]
[1747327496891,0.06443106,103590.0,103580.0,0.85808823]
[1747327497910,0.06543106,103590.0,103580.0,0.85808823]
[1747327498121,0.00343106,103590.0,103580.0,0.85808823]
[1747327498523,0.03453106,103590.0,103580.0,0.85808823]
[1747327498748,0.06673106,103590.0,103580.0,0.85808823]
[1747327498947,0.06677903,103590.0,103580.0,0.85808823]
[1747327499777,0.06677903,103590.0,103580.0,0.66608823]
[1747327499989,0.06677903,103590.0,103580.0,0.32608823]
[1747327500219,0.44194128,103590.0,103580.0,0.32608823]
[1747327500428,0.09573775,103590.0,103580.0,0.32608823]
[1747327500832,0.06677903,103590.0,103580.0,0.33562282]
[1747327501461,0.06677903,103590.0,103580.0,0.67562282]
[1747327501809,0.06677903,103590.0,103580.0,0.86762282]
[1747327502624,0.00347903,103590.0,103580.0,0.86762282]
[1747327504703,0.00347903,103590.0,103580.0,0.89401405]
[1747327504908,0.00347903,103590.0,103580.0,0.9395549]
[1747327505143,0.00347903,103590.0,103580.0,0.9720549]
[1747327505307,0.00715076,103600.0,103590.0,0.26706885]
[1747327505544,0.00715076,103600.0,103590.0,0.58721825]
[1747327505852,0.00715076,103600.0,103590.0,1.01082762]
[1747327506060,0.00715076,103600.0,103590.0,1.48943662]
[1747327506411,0.00715076,103600.0,103590.0,1.43412404]
[1747327506617,0.00815076,103600.0,103590.0,1.43412404]
[1747327506820,0.001,103600.0,103590.0,1.77412404]
[1747327507020,0.001,103610.0,103600.0,0.63984743]
[1747327507345,0.00104796,103610.0,103600.0,2.51615825]
[1747327507730,1e-08,103610.0,103600.0,2.53288762]
[1747327507943,0.15002276,103630.0,103620.0,0.64200459]
[1747327508172,0.15007072,103630.0,103620.0,1.12303399]
[1747327508370,0.002,103650.0,103640.0,0.22192091]
[1747327508546,0.00204796,103650.0,103640.0,1.13461116]
[1747327508750,0.00204796,103650.0,103640.0,1.14915964]
[1747327509349,0.00204796,103650.0,103640.0,1.15588901]
[1747327509554,0.00204796,103650.0,103640.0,1.18738901]
[1747327509768,0.01618095,103660.0,103650.0,0.6257995]
[1747327509981,0.00854299,103660.0,103650.0,2.30977375]
[1747327510214,0.01415582,103670.0,103660.0,0.22187809]
[1747327510424,0.01415582,103670.0,103660.0,0.51114749]
[1747327510623,0.01420377,103670.0,103660.0,0.32591686]
[1747327510830,0.01420377,103670.0,103660.0,0.72065202]
[1747327511464,0.01420377,103670.0,103660.0,0.35019287]
[1747327511678,0.04730377,103670.0,103660.0,0.67565202]
[1747327512104,0.07750377,103670.0,103660.0,0.67565202]
[1747327512254,0.44969748,103670.0,103660.0,0.67565202]
[1747327512666,0.47863404,103670.0,103660.0,0.32591686]
[1747327512904,0.47863395,103670.0,103660.0,0.31918749]
[1747327513107,0.46898824,103670.0,103660.0,0.32018749]
[1747327513309,0.08714901,103670.0,103660.0,0.32018749]
[1747327513519,0.46898824,103670.0,103660.0,0.31918749]
[1747327513814,0.47863404,103670.0,103660.0,0.31918749]
[1747327514013,0.46898824,103670.0,103660.0,0.31918749]
[1747327514164,0.47863385,103670.0,103660.0,0.30954122]
[1747327514381,0.67155463,103670.0,103660.0,0.20258527]
[1747327514598,0.08099327,103660.0,103650.0,0.20260482]
[1747327514803,0.29324697,103650.0,103640.0,0.0983094]
[1747327515004,0.27443449,103650.0,103640.0,0.22292109]
[1747327515348,0.44354091,103650.0,103640.0,0.23256941]
[1747327515558,0.2561,103650.0,103640.0,0.32987881]
[1747327515772,0.2657471,103650.0,103640.0,0.32987881]
[1747327515893,0.08099439,103650.0,103640.0,0.32987881]
[1747327516099,0.0617,103650.0,103640.0,0.32987881]
[1747327516313,0.2565,103650.0,103640.0,0.32987881]
[1747327516907,0.62869371,103650.0,103640.0,0.32987881]
[1747327517103,0.2661471,103650.0,103640.0,0.32987881]
[1747327517358,0.2565,103650.0,103640.0,0.33935887]
[1747327517503,0.2661471,103650.0,103640.0,0.32987881]
[1747327517706,0.2565,103650.0,103640.0,0.32987881]
[1747327518395,0.2565,103650.0,103640.0,0.33953912]
[1747327518791,0.27579448,103650.0,103640.0,0.32987881]
[1747327518918,0.2565,103650.0,103640.0,0.32987881]
[1747327520657,0.5976088,103670.0,103660.0,0.22187809]
[1747327520842,0.03349453,103670.0,103660.0,0.22187809]
[1747327521047,0.24182033,103670.0,103660.0,0.22187809]
[1747327521271,0.29557453,103670.0,103660.0,0.22187809]
[1747327521899,0.30522024,103670.0,103660.0,0.22187809]
[1747327522120,0.31486604,103670.0,103660.0,0.22187809]
[1747327522311,0.30522024,103670.0,103660.0,0.22187809]
[1747327522641,0.31486604,103670.0,103660.0,0.22187809]
[1747327522849,0.49814111,103670.0,103660.0,0.20258527]
[1747327523051,0.29946111,103670.0,103660.0,0.212232]
[1747327523270,0.49858111,103670.0,103660.0,0.22187845]
[1747327523479,0.29601528,103670.0,103660.0,0.23152472]
[1747327523685,0.29601435,103670.0,103660.0,0.23152472]
[1747327524092,0.07760377,103670.0,103660.0,0.32883412]
[1747327524302,0.01420377,103670.0,103660.0,0.32883412]
[1747327525116,0.01420377,103670.0,103660.0,0.33551511]
[1747327526546,0.01420377,103670.0,103660.0,0.67551511]
[1747327528194,0.01420377,103670.0,103660.0,0.87011511]
[1747327528609,0.01420377,103670.0,103660.0,0.93271511]
[1747327528936,0.01420377,103670.0,103660.0,0.94725596]
[1747327529340,0.01420377,103670.0,103660.0,1.26259208]
[1747327530380,0.01420377,103670.0,103660.0,1.18464596]
[1747327530844,0.01420377,103670.0,103660.0,0.94480696]
[1747327531038,0.01420377,103670.0,103660.0,1.34148696]
[1747327531616,0.01420377,103670.0,103660.0,1.29992696]
[1747327533512,0.01714359,103690.0,103680.0,0.63857613]
[1747327533711,0.0176232,103690.0,103680.0,1.36690353]
[1747327533914,0.0176232,103690.0,103680.0,1.37358452]
[1747327534115,0.0176232,103690.0,103680.0,1.30764252]
[1747327534741,0.0176232,103690.0,103680.0,0.86038567]
[1747327535349,0.01617957,103690.0,103680.0,0.86038567]
[1747327535757,0.01617957,103690.0,103680.0,0.66582567]
[1747327535959,0.01617957,103690.0,103680.0,0.86038567]
[1747327536801,0.01617957,103690.0,103680.0,0.66582567]
[1747327537006,0.04747957,103690.0,103680.0,0.86038567]
[1747327537555,0.04747957,103690.0,103680.0,0.52038567]
[1747327537759,0.08047957,103690.0,103680.0,0.52038567]
[1747327537951,0.08047957,103690.0,103680.0,0.32582567]
[1747327538141,0.08047957,103690.0,103680.0,0.52038567]
[1747327538394,0.08047957,103690.0,103680.0,0.32582567]
[1747327538825,0.08054609,103690.0,103680.0,0.32582567]
[1747327539989,0.08047957,103690.0,103680.0,0.32575915]
[1747327540872,0.01617957,103690.0,103680.0,0.32575915]
[1747327541618,0.08782305,103690.0,103680.0,0.32575915]
[1747327541858,0.09746634,103690.0,103680.0,0.32575915]
[1747327542016,0.08782295,103690.0,103680.0,0.32575915]
[1747327542419,0.08782286,103690.0,103680.0,0.32575915]
[1747327542933,0.65289966,103690.0,103680.0,0.00668099]
[1747327543177,0.02893684,103670.0,103660.0,0.21223145]
[1747327543375,0.58440469,103670.0,103660.0,0.30954141]
[1747327543579,0.03858218,103670.0,103660.0,0.30954141]
[1747327543779,0.84636515,103670.0,103660.0,0.0973094]
[1747327543980,0.84636515,103670.0,103660.0,0.29024785]
[1747327544188,0.09093889,103660.0,103650.0,0.21223558]
[1747327544388,0.08129225,103660.0,103650.0,0.31919218]
[1747327544587,0.10058516,103660.0,103650.0,0.31919218]
[1747327544764,0.66571825,103660.0,103650.0,0.3065955]
[1747327545090,0.64642572,103660.0,103650.0,0.19965496]
[1747327545416,0.64642572,103660.0,103650.0,0.2189502]
[1747327545622,0.64642572,103660.0,103650.0,0.22859758]
[1747327545798,0.64642572,103660.0,103650.0,0.2122523]
[1747327546012,0.27423201,103660.0,103650.0,0.2122523]
[1747327547215,0.08279468,103650.0,103640.0,0.22391996]
[1747327547420,0.10208925,103650.0,103640.0,0.21427258]
[1747327547755,0.09244168,103650.0,103640.0,0.22392071]
[1747327547959,0.26278,103650.0,103640.0,0.32123011]
[1747327548171,0.28149253,103660.0,103650.0,0.2218995]
[1747327548382,0.09221829,103660.0,103650.0,0.2218995]
[1747327548578,0.30122493,103660.0,103650.0,0.2218995]
[1747327549119,0.29157829,103660.0,103650.0,0.2218995]
[1747327549539,0.29157829,103660.0,103620.0,0.002]
[1747327549540,0.25309306,103630.0,103620.0,0.002]
[1747327549754,1.18090201,103630.0,103620.0,0.002]
[1747327549972,0.21266339,103620.0,103610.0,0.08514155]
[1747327550179,0.71719234,103620.0,103610.0,0.08514155]
[1747327550824,0.84650174,103620.0,103610.0,0.08514155]
[1747327551251,0.84650174,103620.0,103610.0,0.0851895]
[1747327551454,0.84650174,103620.0,103610.0,4.795e-05]
[1747327551659,1.24546174,103620.0,103610.0,4.795e-05]
[1747327552092,1.24646174,103620.0,103610.0,4.795e-05]
[1747327552293,1.24546174,103620.0,103610.0,4.795e-05]
[1747327552797,1.24646174,103620.0,103610.0,4.795e-05]
[1747327553422,1.67559216,103620.0,103610.0,4.795e-05]
[1747327553634,1.63074085,103610.0,103600.0,0.002]
[1747327553845,1.2254213,103610.0,103600.0,0.00204796]
[1747327555610,0.80472295,103610.0,103600.0,0.00204796]
[1747327555793,1.5213519,103610.0,103600.0,0.00204796]
[1747327555978,1.5115519,103610.0,103600.0,0.00204796]
[1747327556184,1.1221119,103610.0,103600.0,0.00204796]
[1747327556411,1.5216319,103610.0,103600.0,0.00204796]
[1747327557432,1.5116319,103610.0,103600.0,0.00204796]
[1747327557599,1.5216319,103610.0,103600.0,0.00204796]
[1747327560811,1.5209119,103610.0,103600.0,0.00204796]
[1747327561883,1.6242213,103610.0,103600.0,0.00204796]
[1747327562209,1.6262213,103610.0,103600.0,0.00204796]
[1747327562797,1.1101119,103610.0,103600.0,0.00204796]
[1747327562967,0.27713424,103610.0,103600.0,0.2144027]
[1747327563184,0.26748295,103610.0,103600.0,0.20475065]
[1747327563375,0.46704295,103610.0,103600.0,0.01170046]
[1747327564010,0.46704295,103610.0,103600.0,0.00204796]
[1747327564409,0.9695119,103610.0,103600.0,0.01170046]
[1747327564834,0.9695119,103610.0,103600.0,0.20475065]
[1747327565621,0.46688295,103610.0,103600.0,0.20475065]
[1747327565822,0.9695119,103610.0,103600.0,0.20475065]
[1747327566025,0.26748295,103610.0,103600.0,0.20475065]
[1747327566180,0.46680295,103610.0,103600.0,0.20475065]
[1747327566392,0.46672295,103610.0,103600.0,0.22405519]
[1747327566632,0.46672295,103610.0,103600.0,0.21440306]
[1747327566838,0.40392295,103610.0,103600.0,0.21440306]
[1747327567044,0.43692295,103610.0,103600.0,0.21440306]
[1747327567246,0.43692295,103610.0,103600.0,0.22405538]
[1747327567622,0.46934295,103610.0,103600.0,0.22405538]
[1747327570709,0.45969156,103610.0,103600.0,0.00204796]
[1747327570940,1.21046991,103610.0,103600.0,0.00204796]
[1747327571142,1.60846991,103610.0,103600.0,0.00204796]
[1747327571354,1.13038181,103610.0,103600.0,0.00204796]
[1747327571558,1.50322115,103610.0,103600.0,0.00204796]
[1747327572117,1.50122115,103610.0,103600.0,0.00204796]
[1747327572321,1.60253055,103610.0,103600.0,0.00204796]
[1747327572920,2.01329989,103610.0,103600.0,0.00204796]
[1747327573113,1.95536989,103610.0,103600.0,0.00204796]
[1747327573261,2.21650221,103610.0,103600.0,0.00204796]
[1747327574051,1.71309671,103610.0,103600.0,0.00204796]
[1747327574452,1.52399556,103610.0,103600.0,0.00204796]
[1747327574651,1.62516616,103610.0,103600.0,0.00204796]
[1747327574851,1.22778731,103610.0,103600.0,0.00204796]
[1747327575104,1.61104646,103610.0,103600.0,0.00204796]
[1747327575456,1.50373706,103610.0,103600.0,0.00204796]
[1747327575673,0.19703156,103610.0,103600.0,0.20475056]
[1747327575926,0.39547156,103610.0,103600.0,0.19509815]
[1747327576096,0.89887706,103610.0,103600.0,0.00204796]
[1747327576630,0.69643706,103610.0,103600.0,0.21440269]
[1747327576844,0.24561293,103620.0,103610.0,0.02895387]
[1747327576845,0.0749,103620.0,103610.0,0.02895387]
[1747327577059,0.03859735,103630.0,103620.0,0.23159894]
[1747327577256,0.22194259,103630.0,103620.0,0.2122985]
[1747327577491,0.20264392,103630.0,103620.0,0.21231403]
[1747327577682,0.20264392,103630.0,103620.0,0.22196448]
[1747327577837,0.20264392,103630.0,103620.0,0.23161466]
[1747327578040,0.40096392,103630.0,103620.0,0.22196448]
[1747327578252,0.8947198,103630.0,103610.0,0.20268267]
[1747327578461,0.01930054,103620.0,103610.0,0.21904333]
[1747327578664,0.72536933,103620.0,103610.0,0.20939222]
[1747327578874,0.72536933,103620.0,103610.0,0.22869453]
[1747327579071,0.73501997,103620.0,103610.0,0.23834554]
[1747327579294,0.0289509,103620.0,103610.0,0.24796923]
[1747327579489,0.39231236,103640.0,103620.0,0.23161364]
[1747327579692,0.20262437,103640.0,103630.0,0.21229344]
[1747327579891,0.21227278,103640.0,103630.0,0.20264401]
[1747327580091,0.71567828,103640.0,103630.0,0.20264401]
[1747327580325,0.91383828,103640.0,103630.0,0.21229363]
[1747327581089,0.91383828,103640.0,103630.0,0.22194315]
[1747327581296,0.40278437,103640.0,103630.0,0.20264401]
[1747327581500,0.39313568,103640.0,103630.0,0.20264401]
[1747327581700,0.89654118,103640.0,103630.0,0.20264401]
[1747327581907,0.39313568,103640.0,103630.0,0.2093611]
[1747327582135,0.89654118,103640.0,103630.0,0.00671709]
[1747327582491,0.89654118,103640.0,103630.0,0.2093611]
[1747327582829,0.1929943,103630.0,103620.0,0.21231337]
[1747327583030,0.0096498,103620.0,103610.0,0.3192664]
[1747327583457,0.89654118,103640.0,103630.0,0.1929943]
[1747327583665,0.03859716,103630.0,103620.0,0.22196374]
[1747327583981,0.23159146,103630.0,103620.0,0.22196374]
[1747327584185,0.03859716,103630.0,103620.0,0.22196374]
[1747327584588,0.02894541,103640.0,103630.0,0.2219424]
[1747327584754,0.22192109,103640.0,103630.0,0.22194259]
[1747327584950,0.42040109,103640.0,103630.0,0.22194259]
[1747327585265,0.42032109,103640.0,103630.0,0.1929943]
[1747327585463,0.41067287,103640.0,103630.0,0.20264401]
[1747327585786,0.03859679,103630.0,103620.0,0.23161401]
[1747327585997,0.04824631,103630.0,103620.0,0.241264]
[1747327586203,0.20264382,103630.0,103610.0,0.33236465]
[1747327586390,0.0096499,103620.0,103610.0,0.31926659]
[1747327586592,0.01929998,103620.0,103610.0,0.32597664]
[1747327586811,0.71571925,103620.0,103610.0,0.00671005]
[1747327587018,0.91399925,103620.0,103610.0,0.20939309]
[1747327587168,0.90434898,103620.0,103610.0,0.00671005]
[1747327587366,0.93644898,103620.0,103610.0,0.00671005]
[1747327587578,0.0193023,103610.0,103600.0,0.25291514]
[1747327587791,0.0289535,103610.0,103600.0,0.25291449]
[1747327588101,0.03860498,103610.0,103600.0,0.24335853]
[1747327588299,0.0192983,103630.0,103620.0,0.23161419]
[1747327588501,0.20262427,103640.0,103630.0,0.21229344]